bitfinex-derivatives/quotes_SOLF0:USTF0_20251119
["timestamp","ask_amount","ask_price","bid_price","bid_amount"]
[1763525891704,0.05340826,139.72,139.7,0.04674608]
[1763525892506,0.05340826,139.72,139.7,3.19674608]
[1763525893808,6.49980826,139.72,139.7,0.04674608]
[1763525897015,0.05340826,139.72,139.7,3.19674608]
[1763525897807,0.05340826,139.72,139.7,9.64374608]
[1763525898008,0.05340826,139.72,139.71,3.15]
[1763525900818,6.4424,139.81,139.72,3.15]
[1763525901006,106.77762206,139.84,139.73,3.15]
[1763525901007,100.2032,139.82,139.73,3.15]
[1763525901209,100.2178,139.8,139.73,3.15]
[1763525901410,100.2396,139.77,139.7,3.15]
[1763525901610,100.2477,139.76,139.67,40.81]
[1763525901826,0.05270156,139.73,139.7,0.04622019]
[1763525902015,6.4463,139.72,139.7,0.04622019]
[1763525902413,101.7189,139.72,139.64,2.96]
[1763525902721,6.448,139.69,139.64,2.96]
[1763525903311,100.2789,139.72,139.64,2.96]
[1763525903312,37.68,139.73,139.64,9.4098]
[1763525903511,0.04989203,139.7,139.67,0.05370553]
[1763525904114,6.4476,139.69,139.67,0.05370553]
[1763525904719,7.8876,139.69,139.67,0.05370553]
[1763525905021,6.4495,139.65,139.6,2.96]
[1763525905217,100.3187,139.66,139.6,2.96]
[1763525905816,0.04801633,139.64,139.62,0.0538456]
[1763525906424,6.49811633,139.64,139.62,0.0538456]
[1763525907418,0.04801633,139.64,139.62,3.0138456]
[1763525907619,100.2698,139.73,139.62,3.0138456]
[1763525907821,137.9698,139.73,139.64,9.4097]
[1763525908013,100.266,139.74,139.64,9.4097]
[1763525908014,6.4465,139.72,139.64,2.96]
[1763525908213,100.2679,139.73,139.64,2.96]
[1763525908415,137.964,139.74,139.64,2.96]
[1763525908618,0.04767536,139.7,139.68,0.05113872]
[1763525911222,6.49487536,139.7,139.68,0.05113872]
[1763525911821,100.3087,139.68,139.57,2.96]
[1763525912329,6.4491,139.66,139.59,2.96]
[1763525912524,100.3087,139.68,139.59,2.96]
[1763525912726,0.04846833,139.65,139.62,0.0545783]
[1763525913932,6.49806833,139.65,139.62,0.0545783]
[1763525914129,0.04846833,139.65,139.62,3.2845783]
[1763525914734,100.2862,139.71,139.62,3.2845783]
[1763525914735,37.72,139.72,139.64,3.23]
[1763525915128,137.9981,139.72,139.64,3.23]
[1763525915435,100.2825,139.71,139.64,3.23]
[1763525915627,100.2901,139.7,139.64,3.23]
[1763525915934,6.49457628,139.68,139.66,0.04629742]
[1763525916323,100.35417628,139.68,139.6,3.23]
[1763525916832,0.04617628,139.68,139.6,3.23]
[1763525917333,6.4496,139.65,139.63,0.04919162]
[1763525917833,100.3652,139.6,139.48,3.23]
[1763525918132,100.3812,139.58,139.49,3.23]
[1763525918429,100.3467,139.62,139.5,3.23]
[1763525918635,100.3572,139.61,139.5,3.23]
[1763525918834,0.05264183,139.57,139.55,3.27539232]
[1763525919138,0.05264183,139.57,139.55,0.04539232]
[1763525919935,0.05264183,139.57,139.55,3.27539232]
[1763525920237,100.3257,139.65,139.56,3.23]
[1763525920426,138.0609,139.66,139.56,3.23]
[1763525920627,6.4501,139.64,139.58,3.23]
[1763525920935,37.74,139.67,139.58,3.23]
[1763525921435,0.04838043,139.64,139.61,3.283289]
[1763525923036,0.04838043,139.64,139.61,0.053289]
[1763525924330,0.04838043,139.64,139.61,3.283289]
[1763525924831,0.04838043,139.64,139.61,0.053289]
[1763525925829,0.04838043,139.64,139.61,3.283289]
[1763525926242,5.32658767,139.7,139.62,3.23]
[1763525926536,6.4473,139.7,139.63,9.6801]
[1763525926937,11.77388767,139.7,139.63,9.6801]
[1763525927133,0.04803335,139.68,139.65,0.05197788]
[1763525928228,6.49623335,139.68,139.65,0.05197788]
[1763525929544,0.04803335,139.68,139.65,3.28197788]
[1763525930643,6.58582206,139.75,139.65,3.28197788]
[1763525930836,5.33384476,139.74,139.65,3.23]
[1763525931036,5.33509173,139.74,139.66,3.23]
[1763525931237,5.33509173,139.76,139.67,3.23]
[1763525931438,6.4446,139.76,139.7,9.677]
[1763525931638,6.58582206,139.8,139.72,3.28382751]
[1763525931639,0.04824484,139.74,139.72,3.28382751]
[1763525931841,0.05071033,139.74,139.72,3.28382751]
[1763525933643,106.78012206,139.84,139.72,4.72382751]
[1763525933842,105.53639997,139.83,139.73,3.23]
[1763525934031,5.33679997,139.82,139.73,3.23]
[1763525934235,105.54299997,139.82,139.73,3.23]
[1763525934440,100.2062,139.82,139.73,3.23]
[1763525934641,0.04889385,139.79,139.76,0.05215019]
[1763525934841,6.49199385,139.79,139.76,0.05215019]
[1763525935042,6.49199385,139.79,139.76,3.28215019]
[1763525935240,0.04889385,139.79,139.76,3.28215019]
[1763525936944,5.32941412,139.85,139.78,3.23]
[1763525937151,5.32941412,139.86,139.78,3.23]
[1763525937853,0.04932935,139.83,139.81,0.04601409]
[1763525938749,0.04932935,139.83,139.81,3.27601409]
[1763525939050,426.43410822,139.93,139.81,3.27601409]
[1763525939051,6.4391,139.88,139.81,3.27601409]
[1763525939245,6.4391,139.88,139.81,3.23]
[1763525939746,6.4391,139.88,139.82,3.23]
[1763525939948,0.05267033,139.86,139.84,0.04521595]
[1763525940148,0.05267033,139.86,139.84,3.27521595]
[1763525940846,0.05267033,139.86,139.84,0.04521595]
[1763525943451,0.05267033,139.86,139.84,3.24521595]
[1763525943848,6.4382,139.9,139.84,3.24521595]
[1763525944346,100.1184,139.94,139.84,3.24521595]
[1763525944551,100.1184,139.94,139.84,3.2]
[1763525944749,0.04158688,139.9,139.88,3.25434319]
[1763525945754,0.04158688,139.9,139.88,0.05434319]
[1763525945946,6.47968688,139.9,139.88,0.05434319]
[1763525947750,0.04158688,139.9,139.88,3.25434319]
[1763525948455,100.0848,139.99,139.89,3.2]
[1763525948456,6.4357,139.95,139.89,3.2]
[1763525948651,137.8048,139.99,139.89,3.2]
[1763525948853,100.0889,139.98,139.89,3.2]
[1763525949441,100.0889,139.98,139.92,0.05415854]
[1763525949643,6.4354,139.96,139.92,3.25415854]
[1763525950149,100.1,139.97,139.92,0.05415854]
[1763525950355,100.1032,139.96,139.92,0.05415854]
[1763525950855,6.4363,139.94,139.92,0.05415854]
[1763525954651,6.4355,139.96,139.92,3.25415854]
[1763525954847,200.1146,140.03,139.92,3.25415854]
[1763525954848,100.0637,140.02,139.92,3.25415854]
[1763525955044,100.0637,140.02,139.96,0.05374092]
[1763525955249,100.0573,140.03,139.96,0.05374092]
[1763525955449,37.68,140.04,139.96,0.05374092]
[1763525955754,100.0323,140.06,139.98,3.2]
[1763525956052,100.0323,140.06,140.01,0.05184176]
[1763525956361,6.432,140.03,140.01,0.05184176]
[1763525956661,7.852,140.03,140.01,0.05184176]
[1763525957357,6.432,140.03,140.01,0.05184176]
[1763525961859,100.0751,140.0,139.92,37.7]
[1763525962159,100.0815,139.99,139.92,3.2]
[1763525962361,6.4358,139.95,139.92,3.2]
[1763525962556,100.0971,139.97,139.89,40.72]
[1763525962964,6.48804176,139.94,139.92,0.04893297]
[1763525963155,0.05184176,139.94,139.92,3.08893297]
[1763525963360,100.0746,140.0,139.93,3.04]
[1763525964063,100.0983,139.97,139.89,40.72]
[1763525964459,6.4359,139.95,139.92,0.04810469]
[1763525964666,100.0983,139.97,139.92,0.04810469]
[1763525965668,100.0832,139.99,139.92,0.04810469]
[1763525966256,37.68,139.99,139.92,3.08810469]
[1763525967069,105.06973602,140.0,139.92,3.08810469]
[1763525967263,6.4348,139.97,139.92,3.08810469]
[1763525968372,100.0614,140.02,139.93,3.04]
[1763525968672,5.40130225,140.01,139.96,3.08919754]
[1763525969370,142.73203602,140.03,139.96,3.08919754]
[1763525969570,5.40628417,140.02,139.96,3.08919754]
[1763525969767,42.67513602,140.03,139.96,3.08919754]
[1763525969967,5.4065692,140.02,139.96,3.08919754]
[1763525970168,5.40614959,140.01,139.96,3.08919754]
[1763525970368,5.41167009,140.0,139.96,3.08919754]
[1763525970569,4.99513602,140.03,139.96,3.08919754]
[1763525970870,5.41303697,140.02,139.96,3.08919754]
[1763525971069,5.41303697,140.01,139.96,3.08919754]
[1763525971369,6.49080064,140.04,139.96,3.08919754]
[1763525971577,5.4182952,140.03,139.96,3.08919754]
[1763525971776,44.15080064,140.06,139.98,3.09358437]
[1763525972075,5.41818868,140.05,139.98,3.09358437]
[1763525972264,5.41818868,140.04,139.98,3.09358437]
[1763525972468,105.47448868,140.03,139.98,0.05358437]
[1763525972675,5.41818868,140.02,139.98,0.05358437]
[1763525972866,5.41818868,140.01,139.98,0.05358437]
[1763525973063,11.78917801,140.0,139.98,0.05358437]
[1763525973268,5.35577801,139.99,139.98,0.05358437]
[1763525975670,5.35577801,139.99,139.98,3.17358437]
[1763525975873,6.49080064,140.04,139.99,3.12]
[1763525976067,6.49080064,140.05,139.99,3.12]
[1763525976271,12.92260064,140.04,140.01,3.1694016]
[1763525976468,6.49080064,140.04,140.01,3.1694016]
[1763525976767,6.49080064,140.09,140.04,3.12]
[1763525977073,6.49080064,140.11,140.05,3.12]
[1763525977264,6.49080064,140.13,140.05,3.17144947]
[1763525977865,12.91850064,140.13,140.05,3.17144947]
[1763525978177,6.49080064,140.14,140.05,3.17144947]
[1763525978378,6.49080064,140.13,140.08,0.05369212]
[1763525978579,6.49080064,140.13,140.08,3.17369212]
[1763525978976,6.4279,140.12,140.08,3.17369212]
[1763525979679,6.49080064,140.13,140.08,3.17369212]
[1763525980178,6.49080064,140.14,140.08,3.17369212]
[1763525980478,6.49080064,140.13,140.08,3.17369212]
[1763525980674,6.49080064,140.14,140.08,3.17369212]
[1763525981287,12.91780064,140.14,140.08,9.60319212]
[1763525981585,6.49080064,140.14,140.08,3.17369212]
[1763525982374,6.49080064,140.16,140.08,3.17369212]
[1763525982779,6.427,140.14,140.09,3.12]
[1763525982981,6.427,140.14,140.1,3.16613049]
[1763525983680,6.49080064,140.14,140.1,0.04613049]
[1763525983881,106.46990064,140.14,140.1,0.04613049]
[1763525984992,6.4279,140.12,140.1,0.04613049]
[1763525987594,6.4296,140.09,140.03,9.5518]
[1763525988089,5.37696067,140.08,140.03,3.12]
[1763525988290,100.0039,140.1,140.03,3.12]
[1763525988486,5.37862474,140.09,140.03,3.12]
[1763525988794,0.04613049,140.07,140.05,0.04726372]
[1763525988996,6.47633049,140.07,140.05,0.04726372]
[1763525991295,0.04613049,140.07,140.05,0.04726372]
[1763525992391,0.04613049,140.07,140.05,3.16726372]
[1763525993090,0.04613049,140.07,140.05,0.04726372]
[1763525993596,6.47643049,140.07,140.05,0.04726372]
[1763525993795,0.04613049,140.07,140.05,0.04726372]
[1763525995290,0.04613049,140.07,140.05,3.16726372]
[1763526000099,0.04613049,140.07,140.05,0.04726372]
[1763526000295,6.47633049,140.07,140.05,0.04726372]
[1763526001096,0.04613049,140.07,140.05,3.16726372]
[1763526001295,5.40075622,140.13,140.05,3.16726372]
[1763526001500,99.9756,140.14,140.05,3.12]
[1763526001697,5.4014469,140.13,140.05,3.12]
[1763526001897,99.9756,140.14,140.05,3.12]
[1763526002107,5.40144866,140.13,140.05,3.12]
[1763526002305,105.39184866,140.12,140.08,0.04693458]
[1763526002507,105.39774866,140.11,140.08,0.04693458]
[1763526002708,105.40554866,140.1,140.02,40.78]
[1763526002904,100.0041,140.1,140.02,3.12]
[1763526003207,6.4303,140.07,140.03,3.12]
[1763526003905,0.04693458,140.06,140.04,0.04920416]
[1763526004808,0.04693458,140.06,140.04,3.10920416]
[1763526005204,99.9843,140.13,140.04,3.10920416]
[1763526005411,6.4279,140.12,140.08,3.06]
[1763526005912,5.38567615,140.13,140.05,3.06]
[1763526006111,99.9895,140.12,140.05,3.06]
[1763526006317,99.9895,140.12,140.07,0.05129113]
[1763526008112,6.4292,140.09,140.07,0.05129113]
[1763526012704,44.0286,140.11,140.07,0.05129113]
[1763526012912,6.4286,140.11,140.07,3.11129113]
[1763526013312,6.4286,140.11,140.07,0.05129113]
[1763526013313,6.4292,140.09,140.07,0.05129113]
[1763526014220,105.42647516,140.08,140.01,40.66]
[1763526014420,100.0187,140.08,140.01,40.66]
[1763526014610,100.0187,140.08,139.92,162.131]
[1763526014611,105.43310006,140.07,139.97,3.06]
[1763526014813,6.432,140.03,139.97,3.06]
[1763526015213,0.05129113,140.01,139.99,3.10701382]
[1763526016118,0.05129113,140.01,139.99,0.04701382]
[1763526017813,0.05129113,140.01,139.91,100.1355]
[1763526017814,100.082,139.99,139.89,3.06]
[1763526018017,43.02800707,139.98,139.89,3.06]
[1763526018215,106.66240878,140.01,139.89,3.06]
[1763526018516,43.02624027,140.0,139.91,3.06]
[1763526018717,37.62,140.0,139.91,3.06]
[1763526018918,0.05153806,139.97,139.94,3.11015127]
[1763526019525,37.64,140.04,139.94,3.11015127]
[1763526019720,5.40862736,140.03,139.94,3.06]
[1763526019917,37.64,140.04,139.94,3.06]
[1763526019918,5.40862736,140.02,139.94,3.06]
[1763526020127,37.64,140.04,139.94,3.06]
[1763526020328,5.40905947,140.03,139.94,3.06]
[1763526020529,0.04676689,140.0,139.97,3.10837917]
[1763526021428,0.04676689,140.0,139.97,0.04837917]
[1763526021732,6.4339,139.99,139.97,0.04837917]
[1763526022528,0.04676689,140.0,139.97,0.04837917]
[1763526024031,6.48026689,140.0,139.97,0.04837917]
[1763526025130,0.04676689,140.0,139.97,3.07837917]
[1763526027229,0.04676689,140.0,139.97,0.04837917]
[1763526028130,6.4339,139.99,139.97,0.04837917]
[1763526028337,100.0897,139.98,139.9,3.03]
[1763526029032,6.4356,139.95,139.9,3.03]
[1763526029233,0.0536773,139.94,139.91,3.08451958]
[1763526031336,0.0536773,139.94,139.91,0.05451958]
[1763526031542,6.4366,139.93,139.91,0.05451958]
[1763526033343,0.0536773,139.94,139.91,0.05451958]
[1763526033539,0.0536773,139.94,139.91,3.28451958]
[1763526034134,0.0536773,139.94,139.91,0.05451958]
[1763526036043,6.4366,139.93,139.91,0.05451958]
[1763526039146,0.0536773,139.94,139.91,3.28451958]
[1763526041649,6.4897773,139.94,139.91,3.28451958]
[1763526041951,0.0536773,139.94,139.91,0.05451958]
[1763526042645,6.4369,139.93,139.91,3.28451958]
[1763526043144,0.0536773,139.94,139.91,0.05451958]
[1763526044139,6.4367,139.93,139.91,0.05451958]
[1763526044343,0.0536773,139.94,139.91,0.05451958]
[1763526044743,6.4366,139.93,139.91,0.05451958]
[1763526047650,0.0536773,139.94,139.91,3.28451958]
[1763526048149,6.4898773,139.94,139.91,3.28451958]
[1763526048349,0.0536773,139.94,139.91,3.28451958]
[1763526050647,6.4897773,139.94,139.91,3.28451958]
[1763526051152,0.0536773,139.94,139.91,3.28451958]
[1763526051554,0.0536773,139.94,139.91,0.05451958]
[1763526051754,0.0536773,139.94,139.91,3.28451958]
[1763526051755,6.4366,139.93,139.91,3.28451958]
[1763526052863,6.437,139.92,139.91,0.05451958]
[1763526053845,6.4365,139.93,139.91,3.28451958]
[1763526054250,6.4897773,139.94,139.91,3.28451958]
[1763526054652,0.0536773,139.94,139.91,3.28451958]
[1763526059960,0.0536773,139.94,139.92,3.23]
[1763526062955,11.89508033,139.99,139.93,3.23]
[1763526063159,6.4342,139.99,139.93,3.23]
[1763526063554,6.4342,139.99,139.94,2.95]
[1763526063962,5.50145125,139.98,139.95,0.05191555]
[1763526064265,5.45998249,139.97,139.95,0.05191555]
[1763526064458,5.45998249,139.96,139.95,0.05191555]
[1763526066760,6.4348,139.97,139.95,3.00191555]
[1763526066960,0.04146876,139.98,139.95,3.00191555]
[1763526067161,0.04146876,139.98,139.95,0.05191555]
[1763526067369,5.46631892,139.97,139.95,0.05191555]
[1763526067567,5.46631892,139.96,139.95,0.05191555]
[1763526067957,6.4361,139.94,139.89,2.95]
[1763526069175,6.437,139.92,139.9,0.05178657]
[1763526069368,0.04931258,139.93,139.9,3.00178657]
[1763526070261,6.437,139.92,139.9,3.00178657]
[1763526070462,6.437,139.92,139.9,0.05178657]
[1763526071665,6.48591258,139.93,139.9,3.00178657]
[1763526071969,0.04931258,139.93,139.9,3.00178657]
[1763526072368,0.04931258,139.93,139.9,9.43958657]
[1763526072565,0.04931258,139.93,139.91,2.95]
[1763526072961,0.04931258,139.93,139.92,2.95]
[1763526075172,6.60276384,140.0,139.92,2.95]
[1763526075364,5.48282311,139.99,139.92,2.95]
[1763526075571,6.4347,139.97,139.92,2.95]
[1763526076167,0.04407173,139.96,139.94,2.95]
[1763526079473,0.04407173,139.96,139.94,6.4359]
[1763526079678,6.60276384,140.03,139.95,2.95]
[1763526079876,5.48006279,140.02,139.95,2.95]
[1763526080073,5.48006279,140.01,139.95,2.95]
[1763526080379,6.60276384,140.05,139.98,2.95]
[1763526080678,5.47860483,140.04,140.0,0.04787317]
[1763526080874,6.4324,140.02,140.0,0.04787317]
[1763526081087,5.47860483,140.01,139.95,2.95]
[1763526081380,105.55610483,140.0,139.93,2.95]
[1763526081576,5.47860483,139.99,139.93,2.95]
[1763526081777,5.47860483,139.98,139.93,2.95]
[1763526081979,5.47860483,139.97,139.93,2.95]
[1763526082183,100.0775,140.0,139.93,2.95]
[1763526082392,0.04787317,139.96,139.94,3.22093985]
[1763526084082,0.04787317,139.96,139.94,9.65673985]
[1763526084290,0.04787317,139.96,139.95,3.17]
[1763526084678,6.4329,140.01,139.97,3.17]
[1763526084883,6.60276384,140.04,139.97,3.17]
[1763526085084,5.47900918,140.03,139.97,3.17]
[1763526085285,6.60276384,140.04,139.97,3.17]
[1763526085286,5.47900918,140.02,139.97,3.17]
[1763526085483,5.47900918,140.01,139.97,3.17]
[1763526085688,6.60276384,140.05,139.99,3.17]
[1763526085888,5.47683623,140.04,139.99,3.17]
[1763526086184,5.47683623,140.03,139.99,3.17]
[1763526086393,6.432,140.03,140.0,0.05126107]
[1763526087092,6.432,140.03,140.0,3.22126107]
[1763526087996,6.4314,140.05,140.0,3.22126107]
[1763526088189,5.47250244,140.04,140.0,3.22126107]
[1763526088389,6.4314,140.05,140.0,3.22126107]
[1763526088700,5.47014687,140.04,140.0,3.22126107]
[1763526088995,6.4314,140.05,140.01,3.17]
[1763526089202,5.47014687,140.04,140.01,3.17]
[1763526089389,6.4314,140.05,140.01,3.17]
[1763526089587,5.4687008,140.04,140.01,3.17]
[1763526089794,6.4314,140.05,140.01,3.17]
[1763526089999,5.4687027,140.04,140.01,3.17]
[1763526090199,100.0272,140.07,140.0,0.05126107]
[1763526090392,105.49953188,140.06,140.0,0.05126107]
[1763526090590,5.46753188,140.05,140.0,0.05126107]
[1763526090891,6.432,140.03,140.0,0.05126107]
[1763526091492,6.4312,140.05,140.0,3.22126107]
[1763526091694,5.46730115,140.04,140.0,3.22126107]
[1763526092004,6.4312,140.05,140.0,3.22126107]
[1763526092295,6.4315,140.04,140.0,3.22126107]
[1763526092496,105.45488121,140.07,140.0,3.22126107]
[1763526092694,5.42698121,140.06,140.0,3.22126107]
[1763526093000,100.0279,140.07,140.0,0.05126107]
[1763526093001,1.9167639,140.04,140.0,0.05126107]
[1763526093198,8.3492639,140.02,140.0,0.05126107]
[1763526094895,6.4325,140.02,140.0,0.05126107]
[1763526097100,5.42837013,140.01,140.0,0.05126107]
[1763526105501,11.86117013,140.01,140.0,0.05126107]
[1763526113415,100.0829,139.99,139.92,3.0]
[1763526113607,5.42837013,139.98,139.92,3.0]
[1763526113807,137.6629,139.99,139.92,3.0]
[1763526114008,5.43663025,139.98,139.92,3.0]
[1763526114207,5.43663025,139.97,139.92,3.0]
[1763526114408,5.48789132,139.96,139.93,0.04599775]
[1763526114603,6.4361,139.94,139.93,0.04599775]
[1763526114807,11.87273025,139.94,139.93,0.04599775]
[1763526115917,5.43663025,139.94,139.93,3.04599775]
[1763526116116,5.43663025,139.94,139.93,0.04599775]
[1763526116620,5.43467916,139.94,139.93,0.04599775]
[1763526117408,11.87077916,139.94,139.93,0.04599775]
[1763526117613,5.43467916,139.94,139.87,40.58]
[1763526117815,5.43467916,139.93,139.88,3.0]
[1763526118014,102.02944263,139.95,139.88,3.0]
[1763526118315,5.43618571,139.94,139.88,3.0]
[1763526118616,0.05153759,139.92,139.9,0.05011526]
[1763526118823,0.05153759,139.92,139.9,3.05011526]
[1763526119015,6.48853759,139.92,139.9,3.05011526]
[1763526120620,0.05153759,139.92,139.9,3.05011526]
[1763526122226,0.05153759,139.92,139.9,9.48791526]
[1763526122523,0.05153759,139.92,139.91,3.0]
[1763526124522,0.00153759,139.92,139.91,3.0]
[1763526124717,100.0694,140.01,139.93,2.96]
[1763526124917,5.42823307,140.0,139.94,2.96]
[1763526125122,100.0694,140.01,139.94,2.96]
[1763526125325,5.42803795,140.0,139.94,2.96]
[1763526125627,0.04572123,139.98,139.96,3.01429014]
[1763526126619,6.48002123,139.98,139.96,0.05429014]
[1763526129427,0.04572123,139.98,139.96,0.05429014]
[1763526129930,6.48002123,139.98,139.96,0.05429014]
[1763526131029,6.4363,139.94,139.9,4.87954263]
[1763526131528,5.42927865,139.93,139.87,4.87954263]
[1763526131717,7.34882128,139.92,139.85,24.28954263]
[1763526131913,0.04719209,139.9,139.87,0.04799441]
[1763526133220,6.4384,139.89,139.87,0.04799441]
[1763526133526,0.04719209,139.9,139.88,2.96]
[1763526133727,0.04719209,139.9,139.89,4.87954263]
[1763526136928,0.04719209,139.9,139.89,2.96]
[1763526138626,0.04719209,139.9,139.87,0.04799441]
[1763526139132,6.4384,139.89,139.87,0.04799441]
[1763526142036,6.4384,139.89,139.87,3.28799441]
[1763526144840,6.4384,139.89,139.87,0.04799441]
[1763526145238,0.04719209,139.9,139.87,3.28799441]
[1763526145440,0.04719209,139.9,139.87,0.04799441]
[1763526145739,5.42392168,139.89,139.87,0.04799441]
[1763526146237,11.86252168,139.89,139.87,0.04799441]
[1763526146633,6.4407,139.84,139.82,0.25]
[1763526147045,100.2042,139.82,139.77,3.24]
[1763526147548,100.1967,139.83,139.77,3.24]
[1763526147844,0.04531159,139.81,139.78,3.28753524]
[1763526148936,6.48781159,139.81,139.78,3.28753524]
[1763526149131,0.04531159,139.81,139.78,3.28753524]
[1763526149935,0.04531159,139.81,139.78,0.04753524]
[1763526150340,5.44178327,139.81,139.78,0.04753524]
[1763526150735,6.4427,139.8,139.78,0.04753524]
[1763526151546,6.4427,139.8,139.73,40.84]
[1763526151547,6.4438,139.78,139.73,40.84]
[1763526151843,6.4438,139.78,139.74,3.24]
[1763526152143,37.62,139.8,139.74,3.24]
[1763526152339,100.1992,139.83,139.74,3.24]
[1763526152537,0.05436743,139.8,139.77,3.2938966]
[1763526160555,6.49696743,139.8,139.77,3.2938966]
[1763526161349,6.4431,139.79,139.77,0.0538966]
[1763526161556,6.4431,139.79,139.71,6.4463]
[1763526161557,100.226,139.79,139.7,37.62]
[1763526161854,100.2241,139.8,139.71,3.08]
[1763526162660,0.05286116,139.77,139.74,3.13284564]
[1763526162858,6.4445,139.76,139.74,0.05284564]
[1763526163950,0.05286116,139.77,139.68,3.08]
[1763526163951,143.30417716,139.77,139.68,3.08]
[1763526164157,100.2462,139.76,139.68,3.08]
[1763526164457,6.4451,139.75,139.68,3.08]
[1763526164652,137.8636,139.77,139.68,3.08]
[1763526164859,0.04960182,139.74,139.71,3.13092147]
[1763526165964,6.49500182,139.74,139.71,3.13092147]
[1763526166459,0.04960182,139.74,139.71,3.13092147]
[1763526168466,0.04960182,139.74,139.71,9.57752147]
[1763526168666,0.04960182,139.74,139.72,3.08]
[1763526170067,6.60276384,139.85,139.77,3.08]
[1763526170270,100.1749,139.86,139.77,3.08]
[1763526170477,100.1828,139.85,139.77,3.08]
[1763526170669,6.4418,139.82,139.74,9.5252]
[1763526171173,0.05356854,139.79,139.77,0.05283413]
[1763526171358,0.04645799,139.79,139.77,0.05283413]
[1763526171770,6.48955799,139.79,139.77,0.05283413]
[1763526172266,0.04645799,139.79,139.77,0.05283413]
[1763526172560,0.04645799,139.79,139.77,3.13283413]
[1763526173572,0.04645799,139.79,139.77,0.05283413]
[1763526174468,6.48945799,139.79,139.77,0.05283413]
[1763526176275,0.04645799,139.79,139.78,3.08]
[1763526177170,5.40428446,139.84,139.79,3.08]
[1763526177366,106.76516384,139.88,139.79,3.08]
[1763526177570,5.40328328,139.87,139.79,3.08]
[1763526177769,6.4408,139.84,139.79,3.08]
[1763526178062,0.04614283,139.83,139.8,3.13492197]
[1763526178271,6.48764283,139.83,139.8,3.13492197]
[1763526179470,0.04614283,139.83,139.8,3.13492197]
[1763526180779,0.04614283,139.83,139.8,0.05492197]
[1763526180988,0.04614283,139.83,139.72,3.08]
[1763526181277,100.232,139.78,139.71,3.00365315]
[1763526181484,100.232,139.78,139.68,3.00365315]
[1763526181485,6.4454,139.74,139.68,3.00365315]
[1763526181783,100.255,139.75,139.67,3.32]
[1763526181973,6.4459,139.73,139.67,3.32]
[1763526182173,0.05404215,139.72,139.7,0.05361935]
[1763526184280,6.61965771,139.77,139.7,3.11361935]
[1763526184476,5.45000813,139.76,139.71,3.06]
[1763526184782,6.61965771,139.8,139.71,3.06]
[1763526184983,5.44907004,139.79,139.71,3.06]
[1763526185184,5.44907004,139.78,139.72,3.06]
[1763526185486,0.05086386,139.76,139.74,3.11452864]
[1763526185881,0.05086386,139.76,139.74,0.05452864]
[1763526186180,5.45181263,139.75,139.69,3.06]
[1763526186388,0.05086386,139.76,139.69,3.06]
[1763526186389,5.45181263,139.74,139.69,3.06]
[1763526186693,5.45181263,139.73,139.66,40.7]
[1763526186881,100.2564,139.75,139.66,3.06]
[1763526187082,6.49591423,139.72,139.7,0.05064503]
[1763526187881,5.45451399,139.71,139.7,0.05064503]
[1763526189088,6.49591423,139.72,139.7,0.05064503]
[1763526189489,5.45879895,139.71,139.7,0.05064503]
[1763526190185,6.49591423,139.72,139.7,0.05064503]
[1763526191784,5.47069415,139.71,139.7,0.05064503]
[1763526193893,0.04961423,139.72,139.7,0.05064503]
[1763526194295,0.04961423,139.72,139.7,3.11064503]
[1763526199589,6.61965771,139.78,139.72,3.06]
[1763526199794,44.25965771,139.84,139.73,3.06]
[1763526200004,6.4426,139.8,139.73,3.06]
[1763526200200,100.2063,139.82,139.73,3.06]
[1763526200409,106.82595771,139.82,139.73,3.06]
[1763526200602,0.05402961,139.79,139.76,0.05121009]
[1763526201404,0.05402961,139.79,139.76,3.11121009]
[1763526202402,6.61965771,139.85,139.76,3.11121009]
[1763526202596,137.8099,139.87,139.76,3.06]
[1763526203095,100.1748,139.86,139.77,3.01]
[1763526203300,100.183,139.85,139.77,3.01]
[1763526203500,0.05318873,139.82,139.8,0.04626634]
[1763526204005,37.64,139.87,139.8,3.05626634]
[1763526204202,6.4381,139.9,139.8,3.05626634]